bitfinex-derivatives/quotes_BTCF0:USTF0_20230901
["timestamp","ask_amount","ask_price","bid_price","bid_amount"]
[1693527281479,0.4185,25994.0,25993.0,0.31516719]
[1693527283872,0.4185,25994.0,25993.0,0.25861881]
[1693527285370,0.4185,25994.0,25993.0,0.41213943]
[1693527285883,0.4165,25992.0,25990.0,0.00057709]
[1693527286069,0.4165,25991.0,25988.0,0.06746731]
[1693527286275,0.4165,25989.0,25988.0,0.06746731]
[1693527287277,0.4165,25989.0,25988.0,0.08946731]
[1693527287581,0.4165,25989.0,25988.0,0.022]
[1693527288680,0.4165,25989.0,25988.0,0.019]
[1693527288879,0.4165,25989.0,25988.0,0.041]
[1693527296192,0.44669456,25989.0,25988.0,0.041]
[1693527297795,0.50573228,25989.0,25988.0,0.041]
[1693527298186,0.50573228,25989.0,25988.0,0.09568907]
[1693527298594,0.05844083,25992.0,25989.0,0.00700377]
[1693527298790,0.4165,25993.0,25991.0,0.53144345]
[1693527298990,0.4165,25993.0,25991.0,0.55144345]
[1693527299198,0.4165,25993.0,25992.0,0.80298761]
[1693527299990,0.004,25993.0,25992.0,1.12454416]
[1693527300196,0.03093484,25995.0,25993.0,0.11123745]
[1693527300490,0.03093484,25995.0,25994.0,0.99399358]
[1693527300791,0.03093484,25995.0,25994.0,1.24013863]
[1693527301189,0.03093484,25995.0,25994.0,1.12523103]
[1693527301383,0.4165,25998.0,25994.0,1.39904403]
[1693527301587,0.4165,25998.0,25997.0,0.4165]
[1693527301795,0.4165,25998.0,25997.0,0.46505928]
[1693527301999,0.4165,25998.0,25997.0,1.15121486]
[1693527302301,0.4165,25998.0,25997.0,0.49304838]
[1693527302489,0.4165,25998.0,25997.0,0.47304838]
[1693527302690,0.4175,25998.0,25997.0,0.47604838]
[1693527303696,0.4225,25998.0,25997.0,0.47904838]
[1693527304492,0.4225,25998.0,25997.0,0.53373745]
[1693527304799,0.4225,25998.0,25997.0,0.47904838]
[1693527305195,0.4225,25998.0,25997.0,0.53373745]
[1693527305700,0.4225,25998.0,25997.0,0.006]
[1693527306100,0.4425,25998.0,25997.0,0.006]
[1693527310394,0.50161119,25998.0,25997.0,0.006]
[1693527319608,0.48161119,25998.0,25997.0,0.006]
[1693527328113,0.48161119,25998.0,25995.0,0.00057698]
[1693527328114,0.50161119,25998.0,25995.0,0.00057698]
[1693527328324,0.42035,25996.0,25992.0,0.11490466]
[1693527328506,0.4165,25993.0,25991.0,0.11490466]
[1693527328711,0.4165,25992.0,25991.0,0.28550466]
[1693527329821,0.4165,25992.0,25991.0,0.30350466]
[1693527330023,0.4165,25992.0,25991.0,0.34005304]
[1693527330315,0.4165,25992.0,25991.0,0.36005304]
[1693527330518,0.4165,25992.0,25991.0,0.24514838]
[1693527330822,0.4165,25992.0,25991.0,0.29983745]
[1693527331120,0.4165,25992.0,25991.0,0.32183745]
[1693527333017,0.47376142,25992.0,25991.0,0.32183745]
[1693527333616,0.47376142,25992.0,25991.0,0.30183745]
[1693527333919,0.47376142,25992.0,25991.0,0.32183745]
[1693527334519,0.05726142,25992.0,25991.0,1.46490156]
[1693527334719,0.4165,25993.0,25991.0,1.7195203]
[1693527335021,0.4165,25993.0,25992.0,0.4165]
[1693527335210,0.4165,25993.0,25992.0,0.54773745]
[1693527337220,0.4165,25993.0,25992.0,0.55673745]
[1693527337620,0.4165,25993.0,25992.0,0.56273745]
[1693527337917,0.4165,25993.0,25992.0,0.7159661]
[1693527338320,0.4165,25993.0,25992.0,0.56273745]
[1693527338515,0.4748114,25993.0,25992.0,0.50804838]
[1693527338821,0.4748114,25993.0,25992.0,0.66127703]
[1693527339122,0.50484532,25993.0,25992.0,0.7159661]
[1693527339320,0.50484532,25993.0,25992.0,0.50804838]
[1693527339625,0.50484532,25993.0,25992.0,0.4515]
[1693527339830,0.50484532,25993.0,25992.0,0.7159661]
[1693527340119,0.50484532,25993.0,25992.0,0.97058446]
[1693527341412,0.50484532,25993.0,25992.0,1.55028118]
[1693527342423,0.50484532,25993.0,25992.0,1.39705253]
[1693527342723,0.50484532,25993.0,25992.0,1.5885206]
[1693527346529,0.50484532,25993.0,25992.0,1.53383153]
[1693527346831,0.50484532,25993.0,25992.0,1.51383153]
[1693527347032,0.50484532,25993.0,25992.0,1.5685206]
[1693527350431,0.50484532,25993.0,25992.0,1.37705253]
[1693527352932,0.50484532,25993.0,25992.0,1.32236346]
[1693527353134,0.50484532,25993.0,25992.0,1.37705253]
[1693527355335,0.50484532,25993.0,25992.0,0.93456718]
[1693527356234,0.50484532,25993.0,25992.0,0.98925625]
[1693527364447,0.50484532,25993.0,25992.0,0.93456718]
[1693527364948,0.50484532,25993.0,25992.0,0.93448428]
[1693527365148,0.50484532,25993.0,25992.0,0.98917335]
[1693527365949,0.50484532,25993.0,25992.0,0.93448428]
[1693527369151,0.50484532,25993.0,25992.0,0.98917335]
[1693527369641,0.50484532,25993.0,25992.0,0.93448428]
[1693527370751,0.50484532,25993.0,25992.0,0.98917335]
[1693527373441,0.50484532,25993.0,25992.0,0.93448428]
[1693527373641,0.50484532,25993.0,25992.0,0.8779359]
[1693527373949,0.50484532,25993.0,25992.0,0.98917335]
[1693527374345,0.50484532,25993.0,25992.0,0.93448428]
[1693527375048,0.50484532,25993.0,25992.0,0.98917335]
[1693527375347,0.50484532,25993.0,25992.0,0.93448428]
[1693527378151,0.50484532,25993.0,25992.0,0.8779359]
[1693527378851,0.50484532,25993.0,25992.0,0.93448428]
[1693527379151,0.50484532,25993.0,25992.0,0.98917335]
[1693527379450,0.50484532,25993.0,25992.0,0.93448428]
[1693527380851,0.50484532,25993.0,25992.0,0.74266217]
[1693527381047,0.08834532,25993.0,25992.0,1.31980001]
[1693527381249,0.15387709,25995.0,25992.0,1.31980001]
[1693527381551,0.17387709,25995.0,25994.0,0.4165]
[1693527381750,0.17387709,25995.0,25994.0,0.67111379]
[1693527381954,0.17387709,25995.0,25994.0,0.72580286]
[1693527382144,0.15387709,25995.0,25994.0,0.97422523]
[1693527384150,0.16187709,25995.0,25994.0,0.97522523]
[1693527384754,0.16487709,25995.0,25994.0,0.97522523]
[1693527391654,0.01157709,25995.0,25994.0,0.97522523]
[1693527394860,0.7974,25999.0,25994.0,0.97522523]
[1693527394861,0.19231811,26003.0,25998.0,0.32969962]
[1693527395056,0.35801811,26007.0,26002.0,0.7165]
[1693527395264,0.02,26007.0,26006.0,0.60814446]
[1693527395564,0.00385,26007.0,26006.0,0.60428545]
[1693527396365,0.00385,26007.0,26006.0,0.6042775]
[1693527396567,0.00485,26007.0,26006.0,0.6042775]
[1693527397272,0.00485,26007.0,26006.0,0.53373745]
[1693527397772,0.00485,26007.0,26006.0,0.6101878]
[1693527402474,0.00485,26007.0,26006.0,0.53373745]
[1693527402764,0.00485,26007.0,26006.0,0.64841297]
[1693527402971,0.001,26007.0,26006.0,0.53373745]
[1693527404972,0.001,26007.0,26006.0,0.64811586]
[1693527405168,0.001,26007.0,26006.0,1.2285878]
[1693527405364,0.5795,26009.0,26006.0,1.2285878]
[1693527405564,0.5795,26009.0,26008.0,0.07626505]
[1693527405760,0.5795,26009.0,26008.0,0.1875025]
[1693527406874,0.5795,26009.0,26008.0,0.1905025]
[1693527407064,0.5795,26009.0,26008.0,0.6070025]
[1693527407264,0.5795,26009.0,26008.0,0.6100025]
[1693527408367,0.03036492,26010.0,26009.0,0.07693952]
[1693527408668,0.5802,26011.0,26009.0,1.2885691]
[1693527408877,0.1658,26012.0,26010.0,0.49270497]
[1693527409071,0.19704619,26012.0,26011.0,0.54925335]
[1693527409468,0.19704619,26012.0,26011.0,0.60394242]
[1693527410177,0.19704619,26012.0,26011.0,0.60694242]
[1693527410380,0.19704619,26012.0,26011.0,0.60994242]
[1693527411980,0.19704619,26012.0,26011.0,0.53373745]
[1693527415980,0.10088297,26012.0,26011.0,0.60994242]
[1693527416575,0.10088297,26012.0,26011.0,0.53373745]
[1693527416776,0.10088297,26012.0,26011.0,0.53273745]
[1693527417076,0.10473297,26012.0,26011.0,0.60794242]
[1693527418470,0.10473297,26012.0,26011.0,0.53173745]
[1693527420083,0.10473297,26012.0,26011.0,0.60794242]
[1693527422987,0.10473297,26012.0,26011.0,0.76054242]
[1693527423889,0.10473297,26012.0,26011.0,1.33883726]
[1693527424478,0.03124619,26012.0,26011.0,1.33883726]
[1693527424686,0.7974,26019.0,26011.0,1.33883726]
[1693527424687,0.00384,26021.0,26015.0,0.3]
[1693527424874,0.1606,26022.0,26020.0,0.4165]
[1693527425080,0.00384,26021.0,26019.0,0.07604867]
[1693527425291,1.2139,26031.0,26019.0,0.07604867]
[1693527425292,0.00384,26028.0,26022.0,0.7165]
[1693527425586,0.00384,26028.0,26027.0,0.4165]
[1693527425587,0.02,26028.0,26027.0,0.4165]
[1693527425785,0.02,26028.0,26027.0,0.52773745]
[1693527425786,0.02384,26028.0,26027.0,0.52773745]
[1693527426187,0.1606,26030.0,26027.0,1.10632531]
[1693527426392,0.1606,26030.0,26029.0,0.4165]
[1693527426583,0.4165,26029.0,26028.0,0.4165]
[1693527426780,0.44034,26029.0,26028.0,0.52773745]
[1693527427191,0.4365,26029.0,26028.0,1.10633611]
[1693527427392,0.16444,26030.0,26028.0,1.10633611]
[1693527427586,0.16444,26030.0,26029.0,0.52773745]
[1693527428290,0.1606,26030.0,26029.0,0.52773745]
[1693527428497,0.1606,26030.0,26029.0,0.53073745]
[1693527428797,0.03140648,26031.0,26029.0,1.10801955]
[1693527428989,0.02,26031.0,26030.0,0.52773745]
[1693527429592,0.4165,26032.0,26030.0,0.52773745]
[1693527429887,0.00384,26031.0,26030.0,0.4165]
[1693527430083,0.00384,26031.0,26030.0,0.4195]
[1693527430292,0.4365,26031.0,26030.0,0.003]
[1693527430494,0.44034,26031.0,26030.0,0.006]
[1693527432189,0.4365,26031.0,26030.0,0.006]
[1693527433598,0.44034,26031.0,26030.0,0.006]
[1693527435207,0.00384,26021.0,26019.0,0.07597997]
[1693527435499,0.3,26029.0,26023.0,0.00711968]
[1693527435703,0.4165,26024.0,26023.0,0.00711968]
[1693527435893,0.4165,26024.0,26023.0,0.11835713]
[1693527436097,0.4165,26025.0,26024.0,0.00384]
[1693527436297,0.4165,26025.0,26024.0,0.53157745]
[1693527436696,0.4165,26023.0,26022.0,0.00768]
[1693527436898,0.853,26023.0,26016.0,0.07597997]
[1693527437202,0.4165,26017.0,26015.0,0.49631997]
[1693527437406,0.1573,26022.0,26016.0,0.11123745]
[1693527437602,0.4165,26017.0,26015.0,0.49631997]
[1693527437908,0.4165,26016.0,26015.0,0.49631997]
[1693527438111,0.32035637,26016.0,26015.0,0.49631997]
[1693527438407,0.32035637,26016.0,26015.0,0.60755742]
[1693527438611,0.32035637,26016.0,26015.0,0.53157745]
[1693527438812,0.00057657,26019.0,26017.0,0.00384]
[1693527439005,0.00057657,26019.0,26018.0,0.52773745]
[1693527439400,0.00057657,26019.0,26018.0,0.54773745]
[1693527440206,0.51669266,26022.0,26018.0,0.4365]
[1693527440407,0.00384,26019.0,26018.0,0.07468907]
[1693527440711,0.00384,26019.0,26018.0,0.49118907]
[1693527440917,0.00384,26019.0,26018.0,0.54773745]
[1693527441214,0.01484,26019.0,26018.0,0.55073745]
[1693527441506,0.01484,26019.0,26018.0,0.6297187]
[1693527441819,0.01484,26019.0,26018.0,0.6097187]
[1693527442104,0.01784,26019.0,26018.0,0.6097187]
[1693527443513,0.01784,26019.0,26018.0,0.53373745]
[1693527443715,0.01784,26019.0,26018.0,0.47904838]
[1693527444010,0.01784,26019.0,26018.0,0.4225]
[1693527444312,0.01784,26019.0,26018.0,0.49848125]
[1693527444709,0.43434,26019.0,26018.0,0.13852963]
[1693527444911,0.43434,26019.0,26018.0,0.06254838]
[1693527445104,0.43434,26019.0,26018.0,0.13852963]
[1693527445713,0.43434,26019.0,26018.0,0.14236963]
[1693527446219,0.49116484,26019.0,26018.0,0.14236963]
[1693527447416,0.51116484,26019.0,26018.0,0.08198125]
[1693527447623,0.51116484,26019.0,26018.0,0.006]
[1693527449211,0.54224806,26019.0,26018.0,0.006]
[1693527450323,0.52224806,26019.0,26018.0,0.48102907]
[1693527450615,0.52224806,26019.0,26018.0,0.57701032]
[1693527450810,0.52224806,26019.0,26018.0,0.6335587]
[1693527451207,0.52224806,26019.0,26018.0,0.55757745]
[1693527451411,0.52224806,26019.0,26018.0,0.67165046]
[1693527451615,0.51840806,26019.0,26018.0,1.2510988]
[1693527451817,0.10190806,26019.0,26018.0,1.54428773]
[1693527452619,0.04508322,26019.0,26018.0,1.54428773]
[1693527453023,0.50347335,26022.0,26021.0,0.00384]
[1693527453218,0.50347335,26022.0,26021.0,0.60774402]
[1693527453413,0.50347335,26022.0,26021.0,0.62774402]
[1693527453610,0.50347335,26022.0,26021.0,0.55157745]
[1693527453808,0.50347335,26022.0,26021.0,0.62775255]
[1693527454314,0.50347335,26022.0,26021.0,1.10923079]
[1693527454514,0.44663429,26022.0,26021.0,1.12923079]
[1693527454819,0.44663429,26022.0,26021.0,1.24648064]
[1693527456224,0.44663429,26022.0,26021.0,1.24948064]
[1693527456419,0.44663429,26022.0,26021.0,1.22948064]
[1693527456622,0.44663429,26022.0,26021.0,1.24948064]
[1693527457113,0.03013429,26022.0,26021.0,1.24948064]
[1693527457323,0.4165,26023.0,26022.0,0.00384]
[1693527457621,0.4165,26023.0,26022.0,0.60776771]
[1693527458219,0.4165,26023.0,26022.0,0.60777402]
[1693527458412,0.4165,26023.0,26022.0,0.6107742]
[1693527458618,0.4165,26023.0,26022.0,0.53457745]
[1693527458818,0.0341272,26024.0,26023.0,0.00384]
[1693527458819,0.0302872,26024.0,26023.0,0.00384]
[1693527459021,0.05854747,26026.0,26025.0,0.00384]
[1693527459224,0.42034,26027.0,26026.0,0.00384]
[1693527459524,0.42034,26027.0,26026.0,0.11507745]
[1693527460226,0.00384,26026.0,26025.0,0.08001542]
[1693527460426,0.00384,26026.0,26024.0,0.00384]
[1693527460427,0.00384,26025.0,26024.0,0.00384]
[1693527460726,0.42034,26025.0,26024.0,0.08001542]
[1693527460927,0.42034,26025.0,26024.0,0.00384]
[1693527462727,0.44034,26025.0,26024.0,0.00384]
[1693527463027,0.00384,26024.0,26023.0,0.57341205]
[1693527463223,0.42034,26024.0,26023.0,0.15307205]
[1693527467120,0.42034,26024.0,26023.0,0.20962043]
[1693527467515,0.42034,26024.0,26023.0,0.13344501]
[1693527468630,0.42034,26024.0,26023.0,0.20979001]
[1693527468931,0.42034,26024.0,26023.0,0.13289338]
[1693527469230,0.42034,26024.0,26023.0,0.17465667]
[1693527469425,0.42034,26024.0,26023.0,0.59115667]
[1693527469930,0.42034,26024.0,26023.0,0.64584574]
[1693527470126,0.42034,26024.0,26023.0,0.55157745]
[1693527470331,0.4165,26024.0,26023.0,0.55157745]
[1693527471231,0.4165,26024.0,26023.0,0.11507745]
[1693527471430,0.4165,26024.0,26023.0,0.13507745]
[1693527472332,0.4165,26024.0,26023.0,0.11507745]
[1693527472531,0.4165,26024.0,26023.0,0.22968754]
[1693527474526,0.44756384,26024.0,26023.0,0.22968754]
[1693527476834,0.44756384,26024.0,26023.0,0.17499847]
[1693527477129,0.44756384,26024.0,26023.0,0.00384]
[1693527477927,0.44756384,26024.0,26023.0,0.11845009]
[1693527478534,0.45140384,26024.0,26023.0,0.11845009]
[1693527479039,0.00384,26023.0,26022.0,0.53495009]
[1693527479231,0.42034,26023.0,26022.0,0.61149847]
[1693527479430,0.42034,26023.0,26022.0,0.49688838]
[1693527479632,0.42034,26023.0,26022.0,0.59159559]
[1693527480626,0.42034,26023.0,26022.0,0.60059559]
[1693527481038,0.4165,26023.0,26022.0,0.60059559]
[1693527481441,0.4165,26023.0,26022.0,1.23369484]
[1693527481642,0.4165,26023.0,26022.0,1.24069484]
[1693527482239,0.4165,26023.0,26022.0,1.12598763]
[1693527483344,0.4165,26023.0,26022.0,1.24067954]
[1693527484232,0.03106384,26024.0,26023.0,0.00384]
[1693527484432,0.42091457,26025.0,26024.0,0.00384]
[1693527484641,0.42091457,26025.0,26024.0,0.10997725]
[1693527484838,0.00057457,26025.0,26024.0,1.25230025]
[1693527485045,0.03513913,26027.0,26026.0,0.00384]
[1693527485046,0.03129913,26027.0,26026.0,0.00384]
[1693527485231,0.42141514,26030.0,26029.0,0.00384]
[1693527485437,0.42141514,26030.0,26029.0,0.53157745]
[1693527485644,0.41757514,26030.0,26029.0,0.53157745]
[1693527486141,0.44895892,26030.0,26029.0,0.53157745]
[1693527486747,0.44895892,26030.0,26029.0,0.47688838]
[1693527486945,0.44895892,26030.0,26029.0,0.06038838]
[1693527487339,0.44895892,26030.0,26029.0,0.11807745]
[1693527487739,0.44895892,26030.0,26029.0,0.003]
[1693527488037,0.44895892,26030.0,26029.0,0.006]
[1693527488038,0.47279892,26030.0,26029.0,0.006]
[1693527488240,0.46895892,26030.0,26029.0,0.006]
[1693527488431,0.46895892,26030.0,26023.0,0.08028375]
[1693527488432,0.66076207,26030.0,26023.0,0.08028375]
[1693527488639,0.4165,26024.0,26023.0,0.08028375]
[1693527488942,0.42034,26024.0,26023.0,0.08028375]
[1693527489646,0.42034,26024.0,26023.0,0.08728375]
[1693527489840,0.42034,26024.0,26023.0,0.15183213]
[1693527490436,0.42034,26024.0,26023.0,0.2065212]
[1693527491049,0.42034,26024.0,26023.0,0.15183213]
[1693527491740,0.42034,26024.0,26023.0,0.09428937]
[1693527493339,0.42034,26024.0,26023.0,0.01784562]
[1693527493941,0.45166311,26024.0,26023.0,0.0943316]
[1693527494137,0.45166311,26024.0,26023.0,0.05663175]
[1693527494340,0.00384,26018.0,26017.0,0.15293038]
[1693527494543,0.00384,26018.0,26015.0,0.35166297]
[1693527494544,0.00384,26016.0,26015.0,0.15293038]
[1693527494742,0.42034,26016.0,26015.0,0.15293038]
[1693527495038,0.42034,26016.0,26014.0,0.15293038]
[1693527495039,0.00384,26015.0,26014.0,0.15293038]
[1693527495337,0.00384,26014.0,26013.0,0.26701345]
[1693527495547,0.42034,26014.0,26013.0,0.15594763]
[1693527495848,0.42034,26014.0,26013.0,0.41035657]
[1693527496046,0.42034,26014.0,26013.0,0.25725456]
[1693527496452,0.42034,26014.0,26013.0,0.36849201]
[1693527496651,0.4165,26014.0,26013.0,0.36849201]
[1693527497054,0.4175,26014.0,26013.0,0.40549201]
[1693527497848,0.42134,26014.0,26013.0,0.55855329]
[1693527498046,0.42234,26014.0,26013.0,0.59270767]
[1693527498348,0.42234,26014.0,26013.0,0.59555329]
[1693527499360,0.42234,26014.0,26013.0,0.28360966]
[1693527499551,0.42234,26014.0,26013.0,0.22706128]
[1693527500154,0.42234,26014.0,26013.0,0.074]
[1693527503249,0.42234,26014.0,26013.0,0.13054838]
[1693527503455,0.42234,26014.0,26013.0,0.133394]
[1693527503657,0.42234,26014.0,26013.0,0.18808307]
[1693527504051,0.42234,26014.0,26013.0,0.133394]
[1693527504251,0.42234,26014.0,26013.0,0.07684562]
[1693527505253,0.42234,26014.0,26013.0,0.18808307]
[1693527505654,0.42234,26014.0,26013.0,0.133394]
[1693527506555,0.42234,26014.0,26013.0,0.074]
[1693527506758,0.00384,26013.0,26009.0,0.15306128]
[1693527506965,0.4165,26010.0,26009.0,0.1559069]
[1693527507265,0.4165,26010.0,26009.0,0.41035471]
[1693527507556,0.4165,26010.0,26009.0,0.46690309]
[1693527507864,0.4165,26010.0,26009.0,0.52159216]
[1693527508056,0.4195,26010.0,26009.0,0.50390309]
[1693527508360,0.4195,26010.0,26009.0,0.54090309]
[1693527508760,0.32333696,26010.0,26009.0,0.59559216]
[1693527509157,0.32333696,26010.0,26009.0,0.54090309]
[1693527509964,0.32633696,26010.0,26009.0,0.54089534]
[1693527510167,0.32633696,26010.0,26009.0,0.38783406]
[1693527510357,0.03118624,26014.0,26010.0,0.00284562]
[1693527510358,0.4165,26011.0,26010.0,0.00284562]
[1693527510560,0.03502624,26014.0,26010.0,0.00284562]
[1693527510561,0.02384,26014.0,26013.0,0.00284562]
[1693527510757,0.44034,26014.0,26013.0,0.00284562]
[1693527510957,0.44034,26014.0,26013.0,0.11408307]
[1693527511266,0.4165,26014.0,26013.0,0.55058307]
[1693527511560,0.16438113,26014.0,26013.0,1.27916226]
[1693527511867,0.16438113,26014.0,26013.0,1.5335648]
[1693527512658,0.00384,26016.0,26015.0,0.00284562]
[1693527512960,0.57184,26020.0,26019.0,0.00284562]
[1693527513261,0.45083221,26020.0,26019.0,0.43934562]
[1693527513462,0.45083221,26020.0,26019.0,0.55058307]
[1693527513861,0.42034,26020.0,26019.0,0.55058307]
[1693527514660,0.44834,26020.0,26019.0,0.55258307]
[1693527514854,0.44834,26020.0,26019.0,0.002]
[1693527514855,0.46834,26020.0,26019.0,0.002]
[1693527515767,0.49434,26020.0,26019.0,0.004]
[1693527517370,0.69314,26020.0,26019.0,0.004]
[1693527519967,0.67314,26020.0,26019.0,0.004]
[1693527520272,0.05784,26020.0,26019.0,0.00684562]
[1693527520770,0.00384,26013.0,26011.0,0.15280515]
[1693527520976,0.3,26019.0,26010.0,0.15280515]
[1693527520977,0.00384,26011.0,26010.0,0.15280515]
[1693527521175,0.61914,26011.0,26010.0,0.2640426]
[1693527521969,0.61914,26011.0,26010.0,0.51847021]
[1693527522778,0.62314,26011.0,26010.0,0.53747021]
[1693527523277,0.6193,26011.0,26010.0,0.53747021]
[1693527523472,0.6223,26011.0,26010.0,0.56847021]
[1693527524471,0.00057669,26013.0,26011.0,0.06991901]
[1693527524671,0.00057669,26013.0,26012.0,0.51835031]
[1693527524870,0.00057669,26013.0,26012.0,1.11595668]
[1693527525170,0.00057669,26013.0,26012.0,0.96328762]
[1693527525772,0.00257669,26013.0,26012.0,0.97028762]
[1693527525976,0.00357669,26013.0,26012.0,0.97028762]
[1693527526281,0.00357669,26013.0,26012.0,1.77642395]
[1693527526475,0.61914,26018.0,26012.0,1.79564395]
[1693527526678,0.61914,26018.0,26012.0,0.81970701]
[1693527526679,0.001,26013.0,26012.0,0.81970701]
[1693527526876,0.001,26013.0,26012.0,1.80062517]
[1693527527183,0.001,26013.0,26012.0,1.60978884]
[1693527527581,0.001,26013.0,26012.0,1.80059208]
[1693527528583,0.001,26013.0,26012.0,1.60978884]
[1693527529082,0.00384,26018.0,26012.0,1.60978884]
[1693527529083,0.00384,26018.0,26012.0,1.60478884]
[1693527529281,0.00484,26018.0,26015.0,0.76796864]
[1693527529583,0.00484,26018.0,26016.0,0.68996949]
[1693527529785,0.00484,26018.0,26016.0,0.59873204]
[1693527529988,0.00384,26018.0,26017.0,0.05654838]
[1693527530287,0.00384,26016.0,26014.0,0.15266864]
[1693527530476,0.00384,26016.0,26014.0,0.40705844]
[1693527530675,0.00384,26016.0,26015.0,0.11123745]
[1693527530984,0.00384,26016.0,26015.0,0.26390609]
[1693527531179,0.61914,26016.0,26015.0,0.50424814]
[1693527531481,0.61914,26016.0,26015.0,0.75862612]
[1693527531985,0.61914,26016.0,26015.0,0.76162612]
[1693527532479,0.65214,26016.0,26015.0,0.52428407]
[1693527532786,0.68714,26016.0,26015.0,0.52728407]
[1693527532981,0.68714,26016.0,26015.0,0.41604662]
[1693527532982,0.74368838,26016.0,26015.0,0.41604662]
[1693527533377,0.74368838,26016.0,26015.0,0.16166864]
[1693527533572,0.79837745,26016.0,26015.0,0.009]
[1693527533770,0.81837745,26016.0,26015.0,0.16166864]
[1693527533983,0.81837745,26016.0,26015.0,0.41606439]
[1693527534186,0.81837745,26016.0,26015.0,0.41606561]
[1693527534980,0.81837745,26016.0,26015.0,0.009]
[1693527535782,0.79837745,26016.0,26015.0,0.009]
[1693527535982,0.81837745,26016.0,26015.0,0.009]
[1693527536786,0.81837745,26016.0,26015.0,0.41606873]
[1693527536990,0.76368838,26016.0,26015.0,0.41606873]
[1693527537390,0.70714,26016.0,26015.0,0.41606873]
[1693527537781,0.76182907,26016.0,26015.0,0.41606873]
[1693527538084,0.81837745,26016.0,26015.0,0.41606873]
[1693527538882,0.70714,26016.0,26015.0,0.31808916]
[1693527539192,0.68714,26016.0,26015.0,0.31808916]
[1693527539388,0.68714,26016.0,26015.0,0.37463754]
[1693527539788,0.68714,26016.0,26015.0,0.56547334]
[1693527540486,0.59100504,26016.0,26015.0,0.56931334]
[1693527541996,0.59100504,26016.0,26015.0,0.51462427]
[1693527542200,0.59100504,26016.0,26015.0,0.32378847]
[1693527542487,0.59100504,26016.0,26015.0,0.37847754]
[1693527544793,0.59100504,26016.0,26015.0,0.32378847]
[1693527545487,0.59484504,26016.0,26015.0,0.32378847]
[1693527545795,0.59484504,26016.0,26015.0,0.37847754]
[1693527545991,0.59484504,26016.0,26015.0,0.31994847]
[1693527546296,0.61484504,26016.0,26015.0,0.41645585]
[1693527546790,0.72608249,26016.0,26015.0,0.41645585]
[1693527546996,0.67139342,26016.0,26015.0,0.41645585]
[1693527549095,0.72608249,26016.0,26015.0,0.41645585]
[1693527549796,0.59484504,26016.0,26015.0,0.47114492]
[1693527550903,0.59484504,26016.0,26015.0,0.4711382]
[1693527551402,0.59484504,26016.0,26015.0,0.41644913]
[1693527551798,0.59484504,26016.0,26015.0,0.009]
[1693527552391,0.90264,26016.0,26015.0,0.009]
[1693527552791,0.95732907,26016.0,26015.0,0.16205576]
[1693527552999,0.95918838,26016.0,26015.0,0.16205576]
[1693527553695,1.01387745,26016.0,26015.0,0.16205576]
[1693527554495,0.95918838,26016.0,26015.0,0.16205576]
[1693527554999,0.90264,26016.0,26015.0,0.41645015]
[1693527555406,0.90264,26016.0,26015.0,0.47113922]
[1693527555606,0.90264,26016.0,26015.0,0.5276876]
[1693527557001,0.90264,26016.0,26015.0,0.37463184]
[1693527558410,0.90264,26016.0,26015.0,0.37847184]
[1693527558608,0.90264,26016.0,26015.0,0.32378277]
[1693527559716,0.95918838,26016.0,26015.0,0.26723439]
[1693527560313,1.01387745,26016.0,26015.0,0.26723439]
[1693527560614,0.95918838,26016.0,26015.0,0.26723439]
[1693527563119,1.01387745,26016.0,26015.0,0.26723439]
[1693527563917,1.01387745,26016.0,26015.0,0.2672318]
[1693527564414,1.01387745,26016.0,26015.0,0.16604457]
[1693527564619,1.01387745,26016.0,26015.0,0.42043637]
[1693527565019,1.01387745,26016.0,26015.0,0.41659637]
[1693527566022,1.03387745,26016.0,26015.0,0.12393459]
[1693527566818,1.03387745,26016.0,26015.0,0.009]
[1693527574226,1.0911086,26016.0,26015.0,0.009]
[1693527577226,1.0911086,26016.0,26015.0,0.16220457]
[1693527577619,1.0711086,26016.0,26015.0,0.16220457]
[1693527577826,1.0711086,26016.0,26015.0,0.41660856]
[1693527579623,1.01641953,26016.0,26015.0,0.41660856]
[1693527579822,0.90264,26016.0,26015.0,0.41660856]
[1693527580018,0.90264,26016.0,26015.0,0.42044856]
[1693527580224,0.4834,26016.0,26015.0,0.55168601]
[1693527580427,0.4834,26016.0,26015.0,0.39848144]
[1693527580628,0.4834,26016.0,26015.0,0.55173702]
[1693527580828,0.4834,26016.0,26015.0,0.53173702]
[1693527581128,0.4834,26016.0,26015.0,0.39848144]
[1693527581523,0.4834,26016.0,26015.0,0.55173566]
[1693527581724,0.4834,26016.0,26015.0,0.39848144]
[1693527582125,0.4834,26016.0,26015.0,0.37848144]
[1693527582329,0.4834,26016.0,26015.0,0.39848144]
[1693527582533,0.4834,26016.0,26015.0,0.37848144]
[1693527586131,0.4834,26016.0,26015.0,0.32379237]
[1693527586326,0.4834,26016.0,26015.0,0.37848144]
[1693527596544,0.4834,26016.0,26015.0,0.32379237]
[1693527596735,0.53808907,26016.0,26015.0,0.26724399]
[1693527596936,0.4834,26016.0,26015.0,0.26724399]
[1693527597639,0.4834,26016.0,26015.0,0.32193306]
[1693527597839,0.4834,26016.0,26015.0,0.37848144]
[1693527601642,0.068,26016.0,26015.0,2.04660908]
[1693527601847,0.033,26018.0,26017.0,0.00384]
[1693527602038,0.44540703,26021.0,26020.0,0.00384]
[1693527602239,0.41924,26024.0,26023.0,0.00384]
[1693527602545,0.41924,26024.0,26023.0,0.41924]
[1693527602546,0.47028979,26024.0,26023.0,0.41924]
[1693527602734,0.47028979,26024.0,26023.0,0.6453407]
[1693527603538,0.45028979,26024.0,26023.0,0.6453407]
[1693527603739,0.47028979,26024.0,26023.0,0.6453407]
[1693527603938,0.45028979,26024.0,26023.0,0.6453407]
[1693527604140,0.47928979,26024.0,26023.0,0.53647745]
[1693527605641,0.47928979,26024.0,26023.0,0.48178838]
[1693527606644,0.47928979,26024.0,26023.0,0.53647745]
[1693527607044,0.47928979,26024.0,26023.0,0.12107745]
[1693527607449,0.47928979,26024.0,26023.0,0.06638838]
[1693527607653,0.59052724,26024.0,26023.0,0.00984]
[1693527608134,0.59052724,26024.0,26023.0,0.006]
[1693527608743,1.02592724,26024.0,26023.0,0.006]
[1693527609047,1.00592724,26024.0,26023.0,0.006]
[1693527609343,1.02592724,26024.0,26023.0,0.006]
[1693527609750,1.02592724,26024.0,26020.0,0.27726325]
[1693527609751,0.00384,26021.0,26020.0,0.27726325]